bitfinex/quotes_BTCUSD_20240620
["timestamp","ask_amount","ask_price","bid_price","bid_amount"]
[1718875529939,0.536365,65755.0,65754.0,0.185846]
[1718875530094,0.595065,65755.0,65754.0,0.185846]
[1718875534069,0.3204595,65755.0,65754.0,0.185846]
[1718875534272,0.3204595,65755.0,65754.0,0.000946]
[1718875534485,0.32046,65755.0,65754.0,0.000946]
[1718875540868,0.26176,65755.0,65754.0,0.24446221]
[1718875541069,0.32046,65755.0,65754.0,0.20252329]
[1718875541705,0.32132,65755.0,65754.0,0.20252329]
[1718875542762,0.32132,65755.0,65754.0,0.00642329]
[1718875545533,0.26262,65755.0,65754.0,0.19912329]
[1718875545729,0.32132,65755.0,65754.0,0.00642329]
[1718875550374,0.16734,65755.0,65754.0,0.00642329]
[1718875550591,0.22132,65755.0,65754.0,0.00642329]
[1718875550743,0.32132,65755.0,65754.0,0.00642329]
[1718875553291,0.26262,65755.0,65754.0,0.0393432]
[1718875553505,0.32132,65755.0,65754.0,0.1425432]
[1718875553706,0.32132,65755.0,65754.0,0.2226432]
[1718875553909,0.32132,65755.0,65754.0,0.2426432]
[1718875554105,0.32132,65755.0,65754.0,0.2226432]
[1718875554908,0.32132,65755.0,65754.0,0.2426432]
[1718875555460,0.32132,65755.0,65754.0,0.2226432]
[1718875555667,0.32132,65755.0,65754.0,0.18972329]
[1718875560212,0.32132,65755.0,65754.0,0.20972329]
[1718875560793,0.32132,65755.0,65754.0,0.18972329]
[1718875561815,0.32132,65755.0,65754.0,0.00642329]
[1718875561999,0.19890419,65755.0,65751.0,0.09941429]
[1718875562230,0.0587,65752.0,65751.0,0.09941429]
[1718875562624,0.09026419,65752.0,65751.0,0.09941429]
[1718875562781,0.21268,65752.0,65751.0,0.09941429]
[1718875562983,0.19026419,65752.0,65751.0,0.09941429]
[1718875563191,0.31268,65752.0,65751.0,0.09941429]
[1718875563417,0.1587,65752.0,65750.0,0.22106591]
[1718875563642,0.1,65751.0,65750.0,0.22106591]
[1718875563831,0.25398,65751.0,65750.0,0.22106591]
[1718875564623,0.26128,65751.0,65750.0,0.22106591]
[1718875564824,0.1,65751.0,65750.0,0.22106591]
[1718875565045,0.03156419,65751.0,65750.0,0.22106591]
[1718875565279,0.24416668,65751.0,65750.0,0.22106591]
[1718875565478,0.1587,65751.0,65750.0,0.22406591]
[1718875566027,0.16338,65751.0,65750.0,0.22106591]
[1718875566449,0.07338,65751.0,65750.0,0.22506591]
[1718875566653,0.07338,65751.0,65750.0,0.22206591]
[1718875567027,0.24136,65751.0,65750.0,0.22306591]
[1718875567233,0.32736,65751.0,65750.0,0.22206591]
[1718875567427,0.17338,65751.0,65750.0,0.22206591]
[1718875567632,0.18738,65751.0,65750.0,0.22306591]
[1718875567828,0.17738,65751.0,65750.0,0.22206591]
[1718875568017,0.17738,65751.0,65750.0,0.22106591]
[1718875568225,0.34236,65751.0,65750.0,0.22206591]
[1718875568636,0.33136,65751.0,65750.0,0.22106591]
[1718875569099,0.34436,65751.0,65750.0,0.22206591]
[1718875569473,0.34536,65751.0,65750.0,0.22206591]
[1718875569675,0.34536,65751.0,65750.0,0.22816902]
[1718875570459,0.28666,65751.0,65750.0,0.24816902]
[1718875570780,0.13268,65751.0,65750.0,0.43906902]
[1718875571005,0.28666,65751.0,65750.0,0.43906902]
[1718875571161,0.32291677,65751.0,65750.0,0.43906902]
[1718875571357,0.32291677,65751.0,65750.0,0.49060409]
[1718875571572,0.33391677,65751.0,65750.0,0.49160409]
[1718875571782,0.33391677,65751.0,65750.0,0.44006902]
[1718875572171,0.32291677,65751.0,65750.0,0.43906902]
[1718875572512,0.33091677,65751.0,65750.0,0.42006902]
[1718875573077,0.33091677,65751.0,65750.0,0.43906902]
[1718875573078,0.31691677,65751.0,65750.0,0.43906902]
[1718875573285,0.30291677,65751.0,65750.0,0.41906902]
[1718875573544,0.31591677,65751.0,65750.0,0.44006902]
[1718875573717,0.31591677,65751.0,65750.0,0.43906902]
[1718875574243,0.32491677,65751.0,65750.0,0.44006902]
[1718875576363,0.32491677,65751.0,65750.0,0.48407592]
[1718875577173,0.32491677,65751.0,65750.0,0.44006902]
[1718875585139,0.32491677,65751.0,65750.0,0.59263014]
[1718875590544,0.32491677,65751.0,65750.0,0.44006902]
[1718875607376,0.32577677,65751.0,65750.0,0.44006902]
[1718875614052,0.32577677,65751.0,65750.0,0.22916902]
[1718875614053,0.32997677,65751.0,65750.0,0.22916902]
[1718875614277,0.38867677,65751.0,65750.0,0.22916902]
[1718875615065,0.38867677,65751.0,65750.0,0.22306591]
[1718875615437,0.38787677,65751.0,65750.0,0.22909449]
[1718875615644,0.38447677,65751.0,65750.0,0.22909449]
[1718875622163,0.32577677,65751.0,65750.0,0.33429449]
[1718875622383,0.38447677,65751.0,65750.0,0.37809394]
[1718875622693,0.38447677,65751.0,65750.0,0.33429449]
[1718875625445,0.38447677,65751.0,65750.0,0.31429449]
[1718875627595,0.38447677,65751.0,65750.0,0.22909449]
[1718875629740,0.38447677,65751.0,65750.0,0.22429449]
[1718875630873,0.32577677,65751.0,65750.0,0.24429449]
[1718875631414,0.38447677,65751.0,65750.0,0.24429449]
[1718875633194,0.32577677,65751.0,65750.0,0.47682394]
[1718875634211,0.32577677,65751.0,65750.0,0.43359449]
[1718875639995,0.32577677,65751.0,65750.0,0.43454049]
[1718875645358,0.13554,65751.0,65750.0,0.59710161]
[1718875645728,0.03554,65751.0,65750.0,0.59710161]
[1718875645924,0.03554,65751.0,65750.0,0.66268177]
[1718875646369,0.02754,65751.0,65750.0,0.66168177]
[1718875646546,0.00554,65751.0,65750.0,0.66068177]
[1718875646905,0.00554,65751.0,65750.0,0.66168177]
[1718875647392,0.00554,65751.0,65750.0,0.66068177]
[1718875647621,0.00554,65751.0,65750.0,0.66368177]
[1718875648644,0.00554,65751.0,65750.0,0.66668177]
[1718875648870,0.00554,65751.0,65750.0,0.59110161]
[1718875650457,0.5007,65763.0,65751.0,0.02]
[1718875650458,0.45386579,65763.0,65751.0,0.02]
[1718875650832,0.03157817,65769.0,65751.0,0.02]
[1718875650833,0.0587,65752.0,65751.0,0.02]
[1718875651788,0.607846,65760.0,65751.0,0.02]
[1718875651987,0.0587,65752.0,65751.0,0.02]
[1718875652414,0.166546,65752.0,65751.0,0.001]
[1718875652623,0.1587,65752.0,65751.0,0.021]
[1718875652962,0.266546,65752.0,65751.0,0.021]
[1718875653171,0.266546,65752.0,65751.0,0.022]
[1718875653448,0.266546,65752.0,65751.0,0.02]
[1718875653642,0.267546,65752.0,65751.0,0.02]
[1718875653851,0.268546,65752.0,65751.0,0.02]
[1718875654411,0.268546,65752.0,65751.0,0.02669024]
[1718875656509,0.268546,65752.0,65751.0,0.00669024]
[1718875658974,0.268546,65752.0,65750.0,0.21721191]
[1718875659175,0.1,65751.0,65750.0,0.21721191]
[1718875659429,0.207846,65751.0,65750.0,0.21721191]
[1718875659896,0.1,65751.0,65750.0,0.21721191]
[1718875660108,0.1,65751.0,65750.0,0.22323747]
[1718875660309,0.0597,65752.0,65750.0,0.22323747]
[1718875660786,0.0607,65752.0,65750.0,0.22323747]
[1718875660987,0.107846,65751.0,65750.0,0.22323747]
[1718875661194,0.207846,65751.0,65750.0,0.21721191]
[1718875661565,0.207846,65751.0,65750.0,0.22323747]
[1718875661764,0.1,65751.0,65750.0,0.22323747]
[1718875662500,0.09233141,65752.0,65750.0,0.22423747]
[1718875662681,0.107846,65751.0,65750.0,0.22423747]
[1718875662903,0.207846,65751.0,65750.0,0.22423747]
[1718875663375,0.1,65751.0,65750.0,0.22423747]
[1718875663530,0.1,65751.0,65750.0,0.22323747]
[1718875663726,0.1,65751.0,65750.0,0.22423747]
[1718875663928,0.004,65751.0,65750.0,0.22423747]
[1718875664131,0.170546,65751.0,65750.0,0.22323747]
[1718875664330,0.270546,65751.0,65750.0,0.22323747]
[1718875664530,0.275546,65751.0,65750.0,0.22323747]
[1718875664959,0.1677,65751.0,65750.0,0.22323747]
[1718875667125,0.109,65751.0,65750.0,0.24756122]
[1718875667331,0.0677,65751.0,65750.0,0.26756122]
[1718875667589,0.1677,65751.0,65750.0,0.26756122]
[1718875667727,0.1677,65751.0,65750.0,0.24756122]
[1718875667930,0.1677,65751.0,65750.0,0.22323747]
[1718875668620,0.109,65751.0,65750.0,0.22323747]
[1718875668812,0.0637,65751.0,65750.0,0.22323747]
[1718875668981,0.1637,65751.0,65750.0,0.22323747]
[1718875669370,0.1627,65751.0,65750.0,0.22323747]
[1718875669539,0.270546,65751.0,65750.0,0.22323747]
[1718875669739,0.275546,65751.0,65750.0,0.22323747]
[1718875669993,0.109,65751.0,65750.0,0.23323747]
[1718875670201,0.0677,65751.0,65750.0,0.23323747]
[1718875670401,0.1677,65751.0,65750.0,0.23323747]
[1718875670610,0.1677,65751.0,65750.0,0.24323747]
[1718875671014,0.270546,65751.0,65750.0,0.24323747]
[1718875671184,0.1627,65751.0,65750.0,0.24323747]
[1718875671395,0.1677,65751.0,65750.0,0.24323747]
[1718875672142,0.1637,65751.0,65750.0,0.24323747]
[1718875672609,0.1677,65751.0,65750.0,0.24323747]
[1718875675318,0.109,65751.0,65750.0,0.24323747]
[1718875675565,0.0677,65751.0,65750.0,0.24323747]
[1718875675782,0.1677,65751.0,65750.0,0.24323747]
[1718875676970,0.109,65751.0,65750.0,0.24323747]
[1718875677138,0.0677,65751.0,65750.0,0.24323747]
[1718875677469,0.1677,65751.0,65750.0,0.24323747]
[1718875677966,0.275546,65751.0,65750.0,0.24323747]
[1718875678109,0.1677,65751.0,65750.0,0.24323747]
[1718875678313,0.109,65751.0,65750.0,0.28657122]
[1718875678509,0.109,65751.0,65750.0,0.47477122]
[1718875679109,0.216846,65751.0,65750.0,0.47477122]
[1718875679719,0.109,65751.0,65750.0,0.47477122]
[1718875679974,0.109,65751.0,65750.0,0.43143747]
[1718875680574,0.1,65751.0,65750.0,0.43143747]
[1718875680772,0.207846,65751.0,65750.0,0.43143747]
[1718875680983,0.1,65751.0,65750.0,0.43243747]
[1718875681337,0.03363141,65752.0,65751.0,0.2082]
[1718875681548,0.03363141,65752.0,65751.0,0.25244375]
[1718875681760,0.0587,65756.0,65752.0,0.1057]
[1718875681970,0.6,65760.0,65751.0,0.15226817]
[1718875681971,0.0587,65753.0,65751.0,0.05026817]
[1718875682187,0.0587,65753.0,65750.0,0.23821191]
[1718875682398,0.1,65754.0,65750.0,0.23821191]
[1718875682600,0.0587,65751.0,65750.0,0.23821191]
[1718875682752,0.1587,65751.0,65750.0,0.23821191]
[1718875683128,0.1587,65751.0,65750.0,0.23721191]
[1718875683975,0.266546,65751.0,65750.0,0.23721191]
[1718875684335,0.266546,65751.0,65750.0,0.23821191]
[1718875686311,0.1587,65751.0,65750.0,0.23821191]
[1718875686960,0.266546,65751.0,65750.0,0.23821191]
[1718875689024,0.266546,65751.0,65750.0,0.21821191]
[1718875689631,0.29812417,65751.0,65750.0,0.21821191]
[1718875689839,0.30906632,65751.0,65750.0,0.21821191]
[1718875690070,0.1587,65751.0,65750.0,0.21821191]
[1718875690376,0.19027817,65751.0,65750.0,0.21721191]
[1718875690580,0.30212417,65751.0,65750.0,0.22323511]
[1718875690749,0.275546,65751.0,65750.0,0.22323511]
[1718875690951,0.19927817,65751.0,65750.0,0.22323511]
[1718875691157,0.175546,65751.0,65750.0,0.22323511]
[1718875691385,0.275546,65751.0,65750.0,0.22323511]
[1718875691584,0.50516784,65751.0,65750.0,0.22323511]
[1718875691947,0.39732184,65751.0,65750.0,0.21721191]
[1718875692127,0.39732184,65751.0,65750.0,0.22323511]
[1718875692598,0.44646784,65751.0,65750.0,0.22323511]
[1718875692769,0.50516784,65751.0,65750.0,0.22323511]
[1718875693337,0.54819559,65751.0,65750.0,0.22323511]
[1718875694879,0.54819559,65751.0,65750.0,0.21721191]
[1718875695078,0.48949559,65751.0,65750.0,0.22323511]
[1718875695280,0.54819559,65751.0,65750.0,0.22323511]
[1718875697390,0.54819559,65751.0,65750.0,0.21023511]
[1718875701004,0.48949559,65751.0,65750.0,0.21023511]
[1718875701211,0.54819559,65751.0,65750.0,0.21023511]
[1718875701391,0.54819559,65751.0,65750.0,0.20421191]
[1718875701880,0.54819559,65751.0,65750.0,0.21023511]
[1718875702083,0.48949559,65751.0,65750.0,0.21023511]
[1718875702539,0.54819559,65751.0,65750.0,0.21023511]
[1718875704742,0.48949559,65751.0,65750.0,0.21023511]
[1718875705021,0.54819559,65751.0,65750.0,0.21023511]
[1718875706148,0.77947206,65751.0,65750.0,0.21023511]
[1718875708366,0.77947206,65751.0,65750.0,0.20421191]
[1718875708524,0.77947206,65751.0,65750.0,0.21023666]
[1718875713543,0.72077206,65751.0,65750.0,0.21023666]
[1718875713749,0.77947206,65751.0,65750.0,0.21023666]
[1718875716473,0.72077206,65751.0,65750.0,0.42263666]
[1718875716712,0.77947206,65751.0,65750.0,0.42263666]
[1718875717151,0.4332106,65751.0,65750.0,0.42263666]
[1718875717393,0.77947206,65751.0,65750.0,0.42263666]
[1718875717558,0.4919106,65751.0,65750.0,0.42263666]
[1718875717735,0.4332106,65751.0,65750.0,0.41661191]
[1718875717942,0.3919106,65751.0,65750.0,0.4080051]
[1718875718166,0.3332106,65751.0,65750.0,0.4280051]
[1718875718326,0.3919106,65751.0,65750.0,0.4280051]
[1718875718525,0.3919106,65751.0,65750.0,0.4080051]
[1718875718724,0.67947206,65751.0,65750.0,0.4080051]
[1718875718949,0.3869106,65751.0,65750.0,0.4080051]
[1718875719264,0.3879106,65751.0,65750.0,0.39661191]
[1718875719481,0.4919106,65751.0,65750.0,0.39661191]
[1718875719731,0.4919106,65751.0,65750.0,0.40801113]
[1718875719925,0.4342106,65751.0,65750.0,0.40801113]
[1718875720223,0.4929106,65751.0,65750.0,0.40801113]
[1718875720552,0.4969106,65751.0,65750.0,0.40801113]
[1718875720743,0.4869106,65751.0,65750.0,0.40801113]
[1718875721345,0.4829106,65751.0,65750.0,0.40801113]
[1718875722275,0.4879106,65751.0,65750.0,0.39661191]
[1718875722474,0.4879106,65751.0,65750.0,0.40801113]
[1718875722671,0.4342106,65751.0,65750.0,0.42801113]
[1718875722913,0.21548183,65751.0,65750.0,0.47081224]
[1718875723122,0.15678183,65751.0,65750.0,0.47081224]
[1718875723378,0.05278183,65751.0,65750.0,0.47081224]
[1718875723689,0.1,65751.0,65750.0,0.47081224]
[1718875723807,0.104,65751.0,65750.0,0.45941302]
[1718875724207,0.1,65751.0,65750.0,0.45941302]
[1718875724427,0.41669997,65751.0,65750.0,0.45941302]
[1718875724729,5.85031097,65751.0,65750.0,0.45941302]
[1718875725845,5.85031097,65751.0,65750.0,0.41661191]
[1718875725846,5.84531097,65751.0,65750.0,0.41661191]
[1718875726049,5.84231097,65751.0,65750.0,0.41661191]
[1718875726295,5.84331097,65751.0,65750.0,0.41661191]
[1718875727479,5.88543651,65751.0,65750.0,0.41661191]
[1718875728884,5.88443651,65751.0,65750.0,0.41661191]
[1718875729220,5.88343651,65751.0,65750.0,0.41961191]
[1718875729627,5.88343651,65751.0,65750.0,0.42261191]
[1718875730464,5.88343651,65751.0,65750.0,0.40261191]
[1718875730684,5.88343651,65751.0,65750.0,0.42261191]
[1718875730685,5.94213651,65751.0,65750.0,0.42261191]
[1718875732568,5.94213651,65751.0,65750.0,0.40261191]
[1718875732926,5.97009657,65751.0,65750.0,0.21021191]
[1718875733860,5.97009657,65751.0,65750.0,0.20721191]
[1718875734055,5.97409657,65751.0,65750.0,0.20421191]
[1718875734389,5.97909657,65751.0,65750.0,0.20421191]
[1718875735520,5.97995657,65751.0,65750.0,0.20421191]
[1718875736294,5.97595657,65751.0,65750.0,0.20421191]
[1718875736497,5.97995657,65751.0,65750.0,0.20421191]
[1718875738735,5.97472269,65751.0,65750.0,0.20421191]
[1718875740026,6.05074269,65751.0,65750.0,0.20421191]
[1718875741262,6.04574269,65751.0,65750.0,0.20421191]
[1718875741461,6.05074269,65751.0,65750.0,0.20421191]
[1718875741843,6.04674269,65751.0,65750.0,0.20421191]
[1718875742441,6.05074269,65751.0,65750.0,0.20421191]
[1718875742687,5.99204269,65751.0,65750.0,0.20421191]
[1718875742885,6.04674269,65751.0,65750.0,0.20421191]
[1718875743104,6.04574269,65751.0,65750.0,0.20421191]
[1718875743470,6.05074269,65751.0,65750.0,0.20421191]
[1718875743815,6.10276181,65751.0,65750.0,0.20421191]
[1718875745300,6.3055123,65751.0,65750.0,0.12066845]
[1718875745641,6.45943765,65751.0,65750.0,0.12066845]
[1718875746090,6.45943765,65751.0,65750.0,0.08466845]
[1718875746424,6.45543765,65751.0,65750.0,0.08466845]
[1718875746647,6.45043765,65751.0,65750.0,0.07566845]
[1718875746844,6.46043765,65751.0,65750.0,0.07666845]
[1718875747050,6.47243765,65751.0,65750.0,0.07766845]
[1718875747248,6.47243765,65751.0,65750.0,0.06466845]
[1718875747456,6.46243765,65751.0,65750.0,0.06366845]
[1718875747829,6.46243765,65751.0,65750.0,0.02766845]
[1718875748238,6.3085123,65751.0,65750.0,0.02766845]
[1718875748659,6.30859747,65751.0,65750.0,0.02766845]
[1718875748879,6.32259747,65751.0,65750.0,0.02866845]
[1718875749260,6.47652282,65751.0,65750.0,0.02866845]
[1718875749641,6.32259747,65751.0,65740.0,0.1033]
[1718875749839,0.0587,65741.0,65740.0,0.1033]
[1718875750244,0.0037,65746.0,65740.0,0.11281535]
[1718875750610,0.0587,65741.0,65740.0,0.1033]
[1718875750994,0.0587,65741.0,65740.0,0.00951535]
[1718875751225,0.0587,65741.0,65740.0,0.001]
[1718875751226,5.1147,65741.0,65740.0,0.001]
[1718875751423,0.4712089,65741.0,65740.0,0.001]
[1718875751628,0.17733215,65741.0,65740.0,0.001]
[1718875751839,5.29078,65741.0,65740.0,0.001]
[1718875752041,5.29078,65741.0,65732.0,0.00061888]
[1718875752042,1.08316102,65741.0,65732.0,0.00061888]
[1718875752251,0.0587,65735.0,65732.0,0.00061888]
[1718875752465,0.0624,65735.0,65732.0,0.00061888]
[1718875752671,0.0624,65735.0,65734.0,0.00874077]
[1718875752805,5.1124,65735.0,65732.0,0.00061888]
[1718875753001,0.39387328,65734.0,65732.0,0.00061888]
[1718875753183,5.15,65734.0,65732.0,0.00061888]
[1718875753396,0.30650543,65733.0,65732.0,0.00061888]
[1718875753606,5.45650543,65733.0,65732.0,0.00061888]
[1718875754228,5.48451127,65733.0,65732.0,0.00061888]
[1718875754442,5.86412227,65733.0,65732.0,0.00061888]
[1718875754652,5.94020227,65733.0,65732.0,0.00061888]
[1718875755263,5.99890227,65733.0,65732.0,0.00061888]
[1718875755690,6.00090227,65733.0,65732.0,0.00061888]
[1718875756743,6.00390227,65733.0,65732.0,0.00061888]
[1718875759447,6.16016339,65733.0,65732.0,0.00061888]
[1718875759624,6.25128906,65733.0,65732.0,0.00061888]
[1718875759817,6.19258906,65733.0,65732.0,0.00061888]
[1718875760036,6.25128906,65733.0,65732.0,0.00061888]
[1718875760442,6.25128906,65733.0,65725.0,0.111593]
[1718875760443,0.09112567,65732.0,65725.0,0.111593]
[1718875760684,0.0587,65726.0,65725.0,0.111593]
[1718875761113,5.15518937,65726.0,65725.0,0.02002272]
[1718875761421,0.53979895,65726.0,65725.0,0.009493]
[1718875761642,5.28329352,65726.0,65725.0,0.009493]
[1718875761852,5.58979895,65726.0,65725.0,0.009493]
[1718875762283,5.58979895,65726.0,65720.0,0.22947688]
[1718875762284,0.05,65721.0,65720.0,0.10093955]
[1718875762500,0.05,65721.0,65708.0,0.00948199]
[1718875762501,0.05,65716.0,65708.0,0.00948199]
[1718875762687,0.05,65717.0,65709.0,0.105]
[1718875762889,0.05,65717.0,65709.0,0.11555146]
[1718875762890,0.0587,65710.0,65709.0,0.11555146]
[1718875763250,0.10518937,65710.0,65709.0,0.01055146]
[1718875763519,5.3020845,65710.0,65708.0,0.00948199]
[1718875763726,0.7356233,65709.0,65708.0,0.00948199]
[1718875763888,0.48864642,65709.0,65708.0,0.11558199]
[1718875764092,0.47602532,65709.0,65708.0,0.21628199]
[1718875764295,0.42953595,65709.0,65708.0,0.21628199]
[1718875764669,0.42953595,65709.0,65708.0,0.28553481]
[1718875764670,0.38264082,65709.0,65708.0,0.28553481]
[1718875764941,0.38264082,65709.0,65708.0,0.41989871]
[1718875765051,0.25829995,65709.0,65708.0,0.41989871]
[1718875765251,0.07608,65709.0,65708.0,0.41989871]
[1718875765499,0.07608,65709.0,65708.0,0.47859871]
[1718875766094,0.0764422,65709.0,65708.0,0.47859871]
[1718875766510,0.5,65732.0,65727.0,0.2068]
[1718875766712,0.0587,65729.0,65728.0,0.02]
[1718875766931,0.0587,65729.0,65728.0,0.03055437]
[1718875767064,0.9337,65729.0,65728.0,0.03055437]
[1718875767269,0.06392,65729.0,65728.0,0.02]
[1718875767488,0.72922,65729.0,65728.0,0.02]
[1718875767690,0.00522,65729.0,65728.0,0.02]
[1718875767889,0.81422,65729.0,65728.0,0.02]
[1718875768113,0.77922,65729.0,65728.0,0.02]
[1718875768316,0.82922,65729.0,65728.0,0.02]
[1718875768734,0.63222,65729.0,65728.0,0.02]
[1718875768933,0.11822,65729.0,65728.0,0.02]
[1718875769161,0.01822,65729.0,65728.0,0.02]
[1718875769506,0.11822,65729.0,65728.0,0.02]
[1718875770647,0.01822,65729.0,65728.0,0.02]
[1718875770849,0.03022,65729.0,65728.0,0.02]
[1718875771655,0.13022,65729.0,65728.0,0.02]
[1718875771879,0.03022,65729.0,65728.0,0.02]
[1718875772453,0.03022,65729.0,65728.0,0.03055437]
[1718875772677,0.03022,65729.0,65728.0,0.02]
[1718875773881,0.03022,65729.0,65728.0,0.03055437]
[1718875774896,0.03022,65729.0,65728.0,0.05328981]
[1718875775493,0.03022,65729.0,65728.0,0.03055437]
[1718875776298,0.03022,65729.0,65728.0,0.04055437]
[1718875776502,0.03022,65729.0,65728.0,0.27961549]
[1718875776877,0.025,65729.0,65728.0,0.27961549]
[1718875777081,0.025,65729.0,65728.0,0.38831549]
[1718875777343,0.013,65729.0,65728.0,0.38831549]
[1718875777556,0.015,65729.0,65728.0,0.38831549]
[1718875777904,0.002,65729.0,65728.0,0.38831549]
[1718875778112,0.04448858,65734.0,65733.0,0.02]
[1718875778312,0.5,65737.0,65736.0,0.02]
[1718875778705,0.1,65737.0,65736.0,0.2165]
[1718875778856,0.1,65737.0,65736.0,0.24915]
[1718875779057,0.02697629,65748.0,65747.0,0.02]
[1718875779235,0.0587,65748.0,65747.0,0.02]
[1718875779893,0.04619501,65751.0,65749.0,0.02]
[1718875780116,0.04619501,65751.0,65750.0,0.02]
[1718875780305,0.10489501,65751.0,65750.0,0.02]
[1718875780506,0.20489501,65751.0,65750.0,0.02]
[1718875781434,0.14619501,65751.0,65750.0,0.02]
[1718875781837,0.04619501,65751.0,65750.0,0.03050525]
[1718875782066,0.05719501,65751.0,65750.0,0.03050525]
[1718875782270,0.07019501,65751.0,65750.0,0.03150525]
[1718875784751,5.12019501,65751.0,65750.0,0.01150525]
[1718875784986,5.51407023,65751.0,65750.0,0.01150525]
[1718875785206,6.53685543,65751.0,65750.0,0.001]
[1718875785921,6.53685535,65751.0,65750.0,0.001]
[1718875786594,6.53685535,65751.0,65750.0,0.021]
[1718875786595,2.61655535,65751.0,65750.0,0.021]
[1718875786783,1.62229764,65751.0,65750.0,0.021]
[1718875786941,1.61598396,65751.0,65750.0,0.021]
[1718875787519,1.61598396,65751.0,65750.0,0.001]
[1718875787920,1.55728396,65751.0,65750.0,0.001]
[1718875788117,1.61598396,65751.0,65750.0,0.001]
[1718875795641,1.61598396,65751.0,65750.0,0.021]
[1718875796432,1.55728396,65751.0,65750.0,0.021]
[1718875796628,1.61598396,65751.0,65750.0,0.021]
[1718875800946,1.55728396,65751.0,65750.0,0.021]
[1718875801121,1.03498396,65751.0,65750.0,0.04275]
[1718875801332,0.99498396,65751.0,65750.0,0.04275]
[1718875801720,0.67889501,65751.0,65750.0,0.04275]
[1718875802122,0.99498182,65751.0,65750.0,0.04275]
[1718875802323,0.94198182,65751.0,65750.0,0.04275]
[1718875802528,0.94198182,65751.0,65750.0,0.021]
[1718875803198,0.94198182,65751.0,65750.0,0.001]
[1718875805380,0.88328182,65751.0,65750.0,0.001]
[1718875805544,1.41611204,65751.0,65750.0,0.001]
[1718875805780,0.94198182,65751.0,65750.0,0.001]
[1718875806129,0.88328182,65751.0,65750.0,0.021]
[1718875806331,1.35741204,65751.0,65750.0,0.021]
[1718875806530,1.41611204,65751.0,65750.0,0.021]
[1718875806899,0.48628182,65751.0,65750.0,0.24385]
[1718875807359,0.48628182,65751.0,65750.0,0.2221]
[1718875807929,0.96041204,65751.0,65750.0,0.2221]
[1718875808118,0.47528182,65751.0,65750.0,0.2221]
[1718875808321,0.94941204,65751.0,65750.0,0.2221]
[1718875808571,0.94941204,65751.0,65750.0,0.2231]
[1718875808773,0.94941204,65751.0,65750.0,0.24641]
[1718875808978,0.94941204,65751.0,65750.0,0.2231]
[1718875809169,0.47528182,65751.0,65750.0,0.2231]
[1718875809368,0.93641204,65751.0,65750.0,0.2321]
[1718875809493,0.46328182,65751.0,65750.0,0.2311]
[1718875809694,0.46328182,65751.0,65750.0,0.41264112]
[1718875810948,0.46328182,65751.0,65750.0,0.37666112]
[1718875811145,0.46328182,65751.0,65750.0,0.38666112]
[1718875811748,0.46328182,65751.0,65750.0,0.38966112]
[1718875811948,0.45566182,65751.0,65750.0,0.38966112]
[1718875814180,0.45566182,65751.0,65750.0,0.37966112]
[1718875814380,0.45566182,65751.0,65750.0,0.42449723]
[1718875814832,0.45561232,65751.0,65750.0,0.42449723]
[1718875815031,0.45561232,65751.0,65750.0,0.37966112]
[1718875815230,0.45561232,65751.0,65750.0,0.38861271]
[1718875821320,0.17854157,65751.0,65750.0,0.38861271]
[1718875822512,0.17854157,65751.0,65750.0,0.01495159]
[1718875822711,0.19376187,65751.0,65750.0,0.006]
[1718875823497,0.29376187,65751.0,65750.0,0.006]
[1718875823967,0.29376187,65751.0,65745.0,0.02]
[1718875824123,0.1,65750.0,65745.0,0.04207]
[1718875824338,0.1,65750.0,65746.0,0.00894897]
[1718875824339,0.111,65749.0,65746.0,0.00894897]
[1718875824552,0.0587,65747.0,65746.0,0.00894897]
[1718875824755,0.0587,65747.0,65743.0,0.02]
[1718875824983,0.0587,65744.0,65743.0,0.02]
[1718875825384,0.0587,65744.0,65743.0,0.02767346]
[1718875825828,0.1,65746.0,65743.0,0.02767346]
[1718875825983,0.0587,65744.0,65743.0,0.02767346]
[1718875826608,0.0597,65744.0,65743.0,0.03367346]
[1718875827215,0.0597,65744.0,65743.0,0.03567346]
[1718875827782,0.0597,65744.0,65743.0,0.03367346]
[1718875827983,0.0607,65744.0,65743.0,0.03567346]
[1718875829023,0.002,65744.0,65743.0,0.03567346]
[1718875829170,0.0607,65744.0,65743.0,0.03567346]
[1718875830283,0.0607,65744.0,65743.0,0.028]
[1718875830700,0.2684,65744.0,65743.0,0.028]
[1718875830906,0.3684,65744.0,65743.0,0.028]
[1718875832441,0.3684,65744.0,65743.0,0.028946]
[1718875832809,0.3684,65744.0,65743.0,0.008946]
[1718875834039,5.2703,65744.0,65743.0,0.008946]
[1718875834271,0.74653195,65744.0,65743.0,0.008946]
[1718875834483,5.35709065,65744.0,65743.0,0.008946]
[1718875834722,0.74653195,65744.0,65743.0,0.008946]
[1718875834920,5.79653195,65744.0,65743.0,0.008946]
[1718875835334,6.24708396,65744.0,65743.0,0.008946]
[1718875839851,6.28880725,65744.0,65743.0,0.008946]
[1718875840229,6.26084153,65744.0,65743.0,0.008946]
[1718875841581,6.57698352,65744.0,65743.0,0.008946]
[1718875842042,6.60487113,65744.0,65743.0,0.008946]
[1718875842785,6.60487113,65744.0,65743.0,0.008905]
[1718875842786,1.64067113,65744.0,65743.0,0.008905]
[1718875842986,1.20123054,65744.0,65743.0,0.008905]
[1718875843189,0.75055289,65744.0,65743.0,0.008905]
[1718875843410,0.76915465,65744.0,65743.0,0.008905]
[1718875843808,0.76815465,65744.0,65743.0,0.006905]
[1718875844088,0.76715465,65744.0,65743.0,0.000946]
[1718875844297,0.79115465,65744.0,65743.0,0.001946]
[1718875844694,0.78115465,65744.0,65743.0,0.000946]
[1718875844811,1.24848285,65744.0,65743.0,0.000946]
[1718875845014,1.24848285,65744.0,65743.0,0.001946]
[1718875845015,6.32648285,65744.0,65743.0,0.001946]
[1718875846323,6.32648285,65744.0,65743.0,0.000946]
[1718875846324,6.6904605,65744.0,65743.0,0.000946]
[1718875846446,6.7491605,65744.0,65743.0,0.000946]
[1718875846645,6.7491605,65744.0,65743.0,0.001946]
[1718875846889,5.4664605,65744.0,65743.0,0.001946]
[1718875847109,5.30967113,65744.0,65743.0,0.001946]
[1718875847316,3.08087113,65744.0,65743.0,0.001946]
[1718875847518,2.71906294,65744.0,65743.0,0.001946]